[Event "Early-Titled-Tuesday-Blitz-October-03-2023"]
[Site "Chess.com"]
[Date "2023.10.03"]
[Round "6"]
[White "vugarrasulov"]
[Black "ActorXu"]
[Result "1-0"]
[WhiteElo "2950"]
[BlackElo "2720"]
[TimeControl "180+1"]
[EndTime "9:08:08 PDT"]
[Termination "vugarrasulov won by resignation"]

1. e4 {[%clk 0:03:00.9]} 1... e5 {[%clk 0:02:58.9]} 2. Nf3 {[%clk 0:03:01.2]}
2... Nf6 {[%clk 0:02:59.2]} 3. Nc3 {[%clk 0:03:01.1]} 3... Nc6 {[%clk
0:02:59.2]} 4. Bb5 {[%clk 0:03:01.4]} 4... Nd4 {[%clk 0:02:58.3]} 5. O-O {[%clk
0:02:56.4]} 5... Nxb5 {[%clk 0:02:56.6]} 6. Nxb5 {[%clk 0:02:57.3]} 6... d6
{[%clk 0:02:47.6]} 7. d4 {[%clk 0:02:56.5]} 7... exd4 {[%clk 0:02:29.4]} 8. Qxd4
{[%clk 0:02:49.4]} 8... Be7 {[%clk 0:02:26.1]} 9. e5 {[%clk 0:02:41.7]} 9...
dxe5 {[%clk 0:02:12.2]} 10. Qxe5 {[%clk 0:02:42.6]} 10... O-O {[%clk 0:01:48.7]}
11. Qxc7 {[%clk 0:02:42.3]} 11... Bd7 {[%clk 0:01:46.2]} 12. Qxd8 {[%clk
0:02:39.8]} 12... Raxd8 {[%clk 0:01:43.9]} 13. Nbd4 {[%clk 0:02:40.4]} 13...
Rfe8 {[%clk 0:01:41.1]} 14. Bg5 {[%clk 0:02:33.7]} 14... h6 {[%clk 0:01:39.8]}
15. Bh4 {[%clk 0:02:34.4]} 15... g5 {[%clk 0:01:34.5]} 16. Bg3 {[%clk
0:02:34.7]} 16... Bc5 {[%clk 0:01:33]} 17. c3 {[%clk 0:02:26.8]} 17... Ne4
{[%clk 0:01:32.2]} 18. Rfe1 {[%clk 0:02:21.5]} 18... Nxg3 {[%clk 0:01:31.4]} 19.
hxg3 {[%clk 0:02:22.4]} 19... f6 {[%clk 0:01:30]} 20. Rxe8+ {[%clk 0:02:13.3]}
20... Rxe8 {[%clk 0:01:29.7]} 21. Re1 {[%clk 0:02:13.8]} 21... Rxe1+ {[%clk
0:01:27.2]} 22. Nxe1 {[%clk 0:02:14.7]} 22... Kf7 {[%clk 0:01:21.3]} 23. f3
{[%clk 0:02:10.2]} 23... h5 {[%clk 0:01:14.9]} 24. Kf2 {[%clk 0:02:09.3]} 24...
Bf5 {[%clk 0:01:08.9]} 25. Ke3 {[%clk 0:02:04.1]} 25... Bb1 {[%clk 0:01:08.2]}
26. a3 {[%clk 0:02:03.7]} 26... Bd6 {[%clk 0:01:02.9]} 27. Kf2 {[%clk
0:01:59.7]} 27... a6 {[%clk 0:01:02]} 28. Nec2 {[%clk 0:01:57.6]} 28... Kg6
{[%clk 0:01:00.8]} 29. Ne3 {[%clk 0:01:55.8]} 29... Bd3 {[%clk 0:00:58.9]} 30.
g4 {[%clk 0:01:47.6]} 30... h4 {[%clk 0:00:48.1]} 31. Nd5 {[%clk 0:01:29]} 31...
Bg3+ {[%clk 0:00:48.1]} 32. Kg1 {[%clk 0:01:29.6]} 32... Kf7 {[%clk 0:00:43.8]}
33. Nf5 {[%clk 0:01:25.7]} 33... Ke6 {[%clk 0:00:31.6]} 34. Nxg3 {[%clk
0:01:23]} 34... hxg3 {[%clk 0:00:29.4]} 35. Ne3 {[%clk 0:01:23.9]} 35... Ke5
{[%clk 0:00:27.8]} 36. a4 {[%clk 0:01:04.2]} 36... Kf4 {[%clk 0:00:22]} 37. Nd5+
{[%clk 0:00:57.7]} 37... Ke5 {[%clk 0:00:22.3]} 38. Nb4 {[%clk 0:00:50.2]} 38...
Bc4 {[%clk 0:00:20.9]} 39. a5 {[%clk 0:00:50.6]} 39... Kf4 {[%clk 0:00:20.5]}
40. Nc2 {[%clk 0:00:51.2]} 40... Bd3 {[%clk 0:00:19.8]} 41. Nd4 {[%clk
0:00:50.5]} 41... Ke3 {[%clk 0:00:19.5]} 42. Nf5+ {[%clk 0:00:48.3]} 42... Bxf5
{[%clk 0:00:07.4]} 43. gxf5 {[%clk 0:00:49.2]} 43... Kd3 {[%clk 0:00:07.9]} 44.
Kf1 {[%clk 0:00:49.2]} 44... Kc2 {[%clk 0:00:08.3]} 45. Ke2 {[%clk 0:00:49.6]}
45... Kxb2 {[%clk 0:00:08.9]} 46. Kd3 {[%clk 0:00:50.2]} 46... Kb3 {[%clk
0:00:09.3]} 47. Kd4 {[%clk 0:00:48.7]} 47... Ka4 {[%clk 0:00:09.5]} 48. Kd5
{[%clk 0:00:48.9]} 48... Kxa5 {[%clk 0:00:08.9]} 49. Ke6 {[%clk 0:00:49.6]}
49... Kb5 {[%clk 0:00:09.3]} 50. Kxf6 {[%clk 0:00:50.3]} 50... a5 {[%clk
0:00:09.9]} 51. Kxg5 {[%clk 0:00:48.9]} 51... a4 {[%clk 0:00:10.5]} 52. f6
{[%clk 0:00:49.6]} 52... a3 {[%clk 0:00:11.2]} 53. f7 {[%clk 0:00:50.5]} 53...
a2 {[%clk 0:00:11.9]} 54. f8=Q {[%clk 0:00:51.4]} 54... a1=Q {[%clk 0:00:12.4]}
55. Qb4+ {[%clk 0:00:50.8]} 55... Kc6 {[%clk 0:00:12.2]} 56. Kg4 {[%clk
0:00:50.6]} 56... Qe1 {[%clk 0:00:11.7]} 57. Qc4+ {[%clk 0:00:48.3]} 57... Kb6
{[%clk 0:00:09.5]} 58. Qd4+ {[%clk 0:00:48.7]} 58... Ka6 {[%clk 0:00:08.9]} 59.
c4 {[%clk 0:00:44.8]} 59... b6 {[%clk 0:00:05.5]} 60. Qd5 {[%clk 0:00:43.5]}
60... Ka7 {[%clk 0:00:04.4]} 61. Qd7+ {[%clk 0:00:41.8]} 61... Ka6 {[%clk
0:00:04.4]} 62. Qc6 {[%clk 0:00:42.3]} 62... Ka7 {[%clk 0:00:01.8]} 63. Qc7+
{[%clk 0:00:42.6]} 63... Ka6 {[%clk 0:00:01.5]} 64. Qc6 {[%clk 0:00:39.7]} 64...
Ka7 {[%clk 0:00:01.3]} 65. f4 {[%clk 0:00:40.2]} 65... Qe2+ {[%clk 0:00:01.2]}
66. Kxg3 {[%clk 0:00:40.5]} 66... Qe3+ {[%clk 0:00:01.7]} 67. Kg4 {[%clk
0:00:40.5]} 67... Qe2+ {[%clk 0:00:01.8]} 68. Kg5 {[%clk 0:00:40.1]} 68... Qe3
{[%clk 0:00:01.7]} 69. g4 {[%clk 0:00:39.5]} 69... Kb8 {[%clk 0:00:02]} 70. Kf5
{[%clk 0:00:37.7]} 70... Qd3+ {[%clk 0:00:02]} 71. Qe4 {[%clk 0:00:37.8]} 71...
Qd6 {[%clk 0:00:02.1]} 72. Qe5 {[%clk 0:00:37.7]} 1-0

[Event "Early-Titled-Tuesday-Blitz-October-03-2023"]
[Site "Chess.com"]
[Date "2023.10.03"]
[Round "6"]
[White "dadice10"]
[Black "Quattroporte300"]
[Result "0-1"]
[WhiteElo "2164"]
[BlackElo "2383"]
[TimeControl "180+1"]
[EndTime "9:08:10 PDT"]
[Termination "Quattroporte300 won on time"]

1. e4 {[%clk 0:03:00.9]} 1... c5 {[%clk 0:02:58.3]} 2. Nc3 {[%clk 0:02:58.9]}
2... a6 {[%clk 0:02:56.1]} 3. Nge2 {[%clk 0:02:57.1]} 3... b5 {[%clk 0:02:55.9]}
4. g3 {[%clk 0:02:57.2]} 4... Bb7 {[%clk 0:02:55.1]} 5. Bg2 {[%clk 0:02:57.5]}
5... b4 {[%clk 0:02:54.5]} 6. Na4 {[%clk 0:02:56.3]} 6... e6 {[%clk 0:02:52.7]}
7. d4 {[%clk 0:02:55.8]} 7... cxd4 {[%clk 0:02:51.9]} 8. Nxd4 {[%clk 0:02:56.5]}
8... Nf6 {[%clk 0:02:51.2]} 9. O-O {[%clk 0:02:56]} 9... d5 {[%clk 0:02:51.3]}
10. exd5 {[%clk 0:02:53.6]} 10... Nxd5 {[%clk 0:02:48.9]} 11. Re1 {[%clk
0:02:49.3]} 11... Be7 {[%clk 0:02:48.7]} 12. a3 {[%clk 0:02:26.2]} 12... bxa3
{[%clk 0:02:46.3]} 13. b3 {[%clk 0:02:25.6]} 13... O-O {[%clk 0:02:45.9]} 14. c4
{[%clk 0:02:22.9]} 14... e5 {[%clk 0:02:30.9]} 15. Nf5 {[%clk 0:02:21.2]} 15...
Bb4 {[%clk 0:02:22.9]} 16. Bxd5 {[%clk 0:02:11.7]} 16... Bxd5 {[%clk 0:02:15]}
17. cxd5 {[%clk 0:02:10.4]} 17... Bxe1 {[%clk 0:02:15.3]} 18. Qxe1 {[%clk
0:02:09.4]} 18... Re8 {[%clk 0:02:14.3]} 19. Qe4 {[%clk 0:02:04.9]} 19... Nd7
{[%clk 0:02:12]} 20. Nd6 {[%clk 0:02:00.1]} 20... Nf6 {[%clk 0:02:08.1]} 21. Qe3
{[%clk 0:01:46.8]} 21... Qxd6 {[%clk 0:02:02.6]} 22. Bxa3 {[%clk 0:01:46.6]}
22... Qxd5 {[%clk 0:02:02.5]} 23. Nb6 {[%clk 0:01:46.2]} 23... Qd4 {[%clk
0:01:36.4]} 24. Qxd4 {[%clk 0:01:38.4]} 24... exd4 {[%clk 0:01:37.3]} 25. Nxa8
{[%clk 0:01:37.8]} 25... Rxa8 {[%clk 0:01:37.7]} 26. Bb2 {[%clk 0:01:36.8]}
26... d3 {[%clk 0:01:31.3]} 27. Bxf6 {[%clk 0:01:34.5]} 27... gxf6 {[%clk
0:01:30.8]} 28. Kf1 {[%clk 0:01:32.6]} 28... Rb8 {[%clk 0:01:17.8]} 29. Ke1
{[%clk 0:01:19.5]} 29... Rxb3 {[%clk 0:01:17.2]} 30. Kd2 {[%clk 0:01:19.5]}
30... Rb2+ {[%clk 0:01:12.1]} 31. Kxd3 {[%clk 0:01:19.4]} 31... Rxf2 {[%clk
0:01:12.5]} 32. Rxa6 {[%clk 0:01:07.3]} 32... Kg7 {[%clk 0:01:12.1]} 33. Ke3
{[%clk 0:00:55.8]} 33... Rxh2 {[%clk 0:01:11.5]} 34. Kf3 {[%clk 0:00:55.9]}
34... Rh5 {[%clk 0:01:07.9]} 35. Kg4 {[%clk 0:00:54]} 35... Rc5 {[%clk
0:01:04.3]} 36. Kf4 {[%clk 0:00:54]} 36... Kg6 {[%clk 0:01:04.2]} 37. g4 {[%clk
0:00:52.5]} 37... Rc4+ {[%clk 0:00:58.2]} 38. Kg3 {[%clk 0:00:52.1]} 38... Re4
{[%clk 0:00:54.8]} 39. Ra5 {[%clk 0:00:48.5]} 39... Re5 {[%clk 0:00:53.9]} 40.
Ra8 {[%clk 0:00:48.1]} 40... f5 {[%clk 0:00:49.9]} 41. Rg8+ {[%clk 0:00:40.9]}
41... Kf6 {[%clk 0:00:42.4]} 42. g5+ {[%clk 0:00:40.9]} 42... Ke6 {[%clk
0:00:42.1]} 43. Re8+ {[%clk 0:00:39.5]} 43... Kd5 {[%clk 0:00:41.2]} 44. Rf8
{[%clk 0:00:38.8]} 44... Re4 {[%clk 0:00:24.3]} 45. Rxf7 {[%clk 0:00:37.1]}
45... Rg4+ {[%clk 0:00:24.6]} 46. Kf3 {[%clk 0:00:35.6]} 46... Rxg5 {[%clk
0:00:22.8]} 47. Rxh7 {[%clk 0:00:34.4]} 47... Rg1 {[%clk 0:00:22.7]} 48. Rh5
{[%clk 0:00:30.6]} 48... Ke5 {[%clk 0:00:22]} 49. Rh8 {[%clk 0:00:25.5]} 49...
Rf1+ {[%clk 0:00:21]} 50. Ke2 {[%clk 0:00:25.1]} 50... Ra1 {[%clk 0:00:21.5]}
51. Kf3 {[%clk 0:00:24.7]} 51... Ra3+ {[%clk 0:00:21.3]} 52. Kf2 {[%clk
0:00:24.5]} 52... Ke4 {[%clk 0:00:21]} 53. Rb8 {[%clk 0:00:19.6]} 53... Ra2+
{[%clk 0:00:20.3]} 54. Kf1 {[%clk 0:00:19.2]} 54... Kf3 {[%clk 0:00:19.6]} 55.
Rb3+ {[%clk 0:00:18.6]} 55... Kg4 {[%clk 0:00:19.9]} 56. Rb8 {[%clk 0:00:17.5]}
56... f4 {[%clk 0:00:20.1]} 57. Rb3 {[%clk 0:00:16.6]} 57... Rc2 {[%clk
0:00:18.9]} 58. Ra3 {[%clk 0:00:15.7]} 58... Rb2 {[%clk 0:00:13.4]} 59. Rc3
{[%clk 0:00:15.1]} 59... Rb1+ {[%clk 0:00:13.9]} 60. Kf2 {[%clk 0:00:11.8]}
60... Rb2+ {[%clk 0:00:14.5]} 61. Kf1 {[%clk 0:00:11.7]} 61... Rb8 {[%clk
0:00:13.6]} 62. Ra3 {[%clk 0:00:11.1]} 62... Re8 {[%clk 0:00:13.8]} 63. Rb3
{[%clk 0:00:11.1]} 63... Re4 {[%clk 0:00:13.2]} 64. Ra3 {[%clk 0:00:10.8]} 64...
f3 {[%clk 0:00:13.5]} 65. Ra8 {[%clk 0:00:04.6]} 65... Kf4 {[%clk 0:00:12.2]}
66. Rb8 {[%clk 0:00:01.7]} 66... Rd4 {[%clk 0:00:10]} 0-1

[Event "Early-Titled-Tuesday-Blitz-October-03-2023"]
[Site "Chess.com"]
[Date "2023.10.03"]
[Round "6"]
[White "elcala"]
[Black "MajorCoast"]
[Result "0-1"]
[WhiteElo "1725"]
[BlackElo "2260"]
[TimeControl "180+1"]
[EndTime "9:08:10 PDT"]
[Termination "MajorCoast won on time"]

1. d4 {[%clk 0:01:50.4]} 1... g6 {[%clk 0:02:45.3]} 2. Nf3 {[%clk 0:01:51.3]}
2... Bg7 {[%clk 0:02:44.6]} 3. Bf4 {[%clk 0:01:52.2]} 3... c5 {[%clk 0:02:44.5]}
4. e3 {[%clk 0:01:51.2]} 4... Nc6 {[%clk 0:02:43.8]} 5. c3 {[%clk 0:01:50.7]}
5... cxd4 {[%clk 0:02:43.7]} 6. cxd4 {[%clk 0:01:48.7]} 6... d5 {[%clk
0:02:43.6]} 7. Nc3 {[%clk 0:01:46.9]} 7... Bf5 {[%clk 0:02:43.4]} 8. Bd3 {[%clk
0:01:46.3]} 8... Bxd3 {[%clk 0:02:43.1]} 9. Qxd3 {[%clk 0:01:47.2]} 9... a6
{[%clk 0:02:43.2]} 10. O-O {[%clk 0:01:46.6]} 10... Rc8 {[%clk 0:02:42.9]} 11.
Rac1 {[%clk 0:01:45]} 11... Nf6 {[%clk 0:02:42]} 12. a3 {[%clk 0:01:44.6]} 12...
e6 {[%clk 0:02:38.8]} 13. Ne5 {[%clk 0:01:42.5]} 13... Nxe5 {[%clk 0:02:36.8]}
14. Bxe5 {[%clk 0:01:43.4]} 14... O-O {[%clk 0:02:36.8]} 15. Ne2 {[%clk
0:01:42.2]} 15... Ng4 {[%clk 0:02:31.2]} 16. Bxg7 {[%clk 0:01:39.3]} 16... Kxg7
{[%clk 0:02:32.1]} 17. h3 {[%clk 0:01:38.8]} 17... Nh6 {[%clk 0:02:28.9]} 18.
Rc3 {[%clk 0:01:36.3]} 18... Rxc3 {[%clk 0:02:23.7]} 19. Qxc3 {[%clk 0:01:35.8]}
19... Qc8 {[%clk 0:02:20.9]} 20. Rc1 {[%clk 0:01:35]} 20... Qxc3 {[%clk
0:02:14.3]} 21. Rxc3 {[%clk 0:01:35.9]} 21... Nf5 {[%clk 0:02:14.6]} 22. Rc7
{[%clk 0:01:32.8]} 22... Rb8 {[%clk 0:02:14.6]} 23. Nc3 {[%clk 0:01:25.9]} 23...
Nd6 {[%clk 0:02:07.7]} 24. b3 {[%clk 0:01:14]} 24... Kf8 {[%clk 0:02:00.6]} 25.
Rd7 {[%clk 0:01:07]} 25... Nf5 {[%clk 0:01:53]} 26. Rc7 {[%clk 0:01:05.1]} 26...
Ke8 {[%clk 0:01:50.6]} 27. Na4 {[%clk 0:01:04.8]} 27... Nd6 {[%clk 0:01:48]} 28.
Nc5 {[%clk 0:01:02.5]} 28... Nb5 {[%clk 0:01:27.7]} 29. Rxb7 {[%clk 0:00:49.1]}
29... Rxb7 {[%clk 0:01:28.6]} 30. Nxb7 {[%clk 0:00:49.4]} 30... Nxa3 {[%clk
0:01:29]} 31. Nc5 {[%clk 0:00:42.2]} 31... a5 {[%clk 0:01:27]} 32. Nb7 {[%clk
0:00:40]} 32... Kd7 {[%clk 0:01:16.8]} 33. Nxa5 {[%clk 0:00:39.4]} 33... Kc7
{[%clk 0:01:16.9]} 34. Kf1 {[%clk 0:00:32.4]} 34... Kb6 {[%clk 0:01:16.3]} 35.
b4 {[%clk 0:00:30.4]} 35... Nc2 {[%clk 0:01:15.6]} 36. Ke2 {[%clk 0:00:19.6]}
36... Nxb4 {[%clk 0:01:14.1]} 37. Nb3 {[%clk 0:00:19.6]} 37... Nc6 {[%clk
0:01:06]} 38. Nc5 {[%clk 0:00:19.3]} 38... Kc7 {[%clk 0:01:05]} 39. Kf3 {[%clk
0:00:18.1]} 39... Kd6 {[%clk 0:01:02.4]} 40. Kf4 {[%clk 0:00:17.5]} 40... Ke7
{[%clk 0:01:00.1]} 41. Kg5 {[%clk 0:00:17]} 41... h5 {[%clk 0:00:58.6]} 42. g4
{[%clk 0:00:15.3]} 42... hxg4 {[%clk 0:00:57.1]} 43. hxg4 {[%clk 0:00:16.2]}
43... Nb4 {[%clk 0:00:57.4]} 44. Kf4 {[%clk 0:00:14.6]} 44... f6 {[%clk
0:00:55]} 45. Kg3 {[%clk 0:00:13.1]} 45... Nc2 {[%clk 0:00:48.5]} 46. Kf3 {[%clk
0:00:10.9]} 46... Ne1+ {[%clk 0:00:46.9]} 47. Ke2 {[%clk 0:00:10.3]} 47... Ng2
{[%clk 0:00:46.2]} 48. Kf3 {[%clk 0:00:10]} 48... Nh4+ {[%clk 0:00:46.2]} 49.
Kg3 {[%clk 0:00:08.9]} 49... g5 {[%clk 0:00:46.9]} 50. f4 {[%clk 0:00:08]} 50...
Ng6 {[%clk 0:00:46]} 51. Nd3 {[%clk 0:00:07.1]} 51... Kd6 {[%clk 0:00:42.5]} 52.
fxg5 {[%clk 0:00:06.3]} 52... fxg5 {[%clk 0:00:42.5]} 53. Kf3 {[%clk 0:00:06.3]}
53... Ke7 {[%clk 0:00:41.2]} 54. e4 {[%clk 0:00:06.5]} 54... Nh4+ {[%clk
0:00:38.1]} 55. Ke3 {[%clk 0:00:04.7]} 55... Kd6 {[%clk 0:00:27.4]} 56. exd5
{[%clk 0:00:04.7]} 56... Kxd5 {[%clk 0:00:26.8]} 57. Ne5 {[%clk 0:00:04.9]}
57... Ng2+ {[%clk 0:00:23.4]} 58. Kf3 {[%clk 0:00:04]} 58... Ne1+ {[%clk
0:00:20.5]} 59. Ke3 {[%clk 0:00:03.9]} 59... Nc2+ {[%clk 0:00:18.6]} 60. Kd3
{[%clk 0:00:02.7]} 60... Nxd4 {[%clk 0:00:18.7]} 61. Nf7 {[%clk 0:00:03.1]}
61... Nf3 {[%clk 0:00:17.6]} 62. Ke3 {[%clk 0:00:02.4]} 62... Ne5 {[%clk
0:00:16.6]} 63. Nxg5 {[%clk 0:00:02.1]} 63... Nxg4+ {[%clk 0:00:16.5]} 64. Kf4
{[%clk 0:00:01.8]} 64... e5+ {[%clk 0:00:15.3]} 65. Kf3 {[%clk 0:00:01.2]} 65...
Nf6 {[%clk 0:00:14.2]} 0-1

[Event "Early-Titled-Tuesday-Blitz-October-03-2023"]
[Site "Chess.com"]
[Date "2023.10.03"]
[Round "6"]
[White "sokidze"]
[Black "Dixit_Nikhil"]
[Result "1-0"]
[WhiteElo "2793"]
[BlackElo "2638"]
[TimeControl "180+1"]
[EndTime "9:08:12 PDT"]
[Termination "sokidze won by checkmate"]

1. e4 {[%clk 0:03:00.9]} 1... c5 {[%clk 0:02:58.5]} 2. Nf3 {[%clk 0:03:00.8]}
2... Nc6 {[%clk 0:02:58.1]} 3. Bb5 {[%clk 0:03:00.5]} 3... g6 {[%clk 0:02:48.7]}
4. O-O {[%clk 0:02:59.8]} 4... Bg7 {[%clk 0:02:48.7]} 5. Re1 {[%clk 0:02:56]}
5... e5 {[%clk 0:02:48.2]} 6. Bxc6 {[%clk 0:02:50.7]} 6... dxc6 {[%clk
0:02:48.1]} 7. d3 {[%clk 0:02:50.5]} 7... Qc7 {[%clk 0:02:45.5]} 8. Be3 {[%clk
0:02:48.4]} 8... b6 {[%clk 0:02:44.9]} 9. a3 {[%clk 0:02:39.5]} 9... Nf6 {[%clk
0:02:38.9]} 10. h3 {[%clk 0:02:39.6]} 10... a5 {[%clk 0:02:38.1]} 11. Nbd2
{[%clk 0:02:34.3]} 11... O-O {[%clk 0:02:36.9]} 12. b4 {[%clk 0:02:12.1]} 12...
cxb4 {[%clk 0:02:35]} 13. axb4 {[%clk 0:02:12.3]} 13... a4 {[%clk 0:02:35]} 14.
Nc4 {[%clk 0:01:42]} 14... Nd7 {[%clk 0:02:33.7]} 15. d4 {[%clk 0:01:42.7]}
15... exd4 {[%clk 0:02:25]} 16. Bxd4 {[%clk 0:01:43]} 16... Ba6 {[%clk
0:02:17.2]} 17. Bxg7 {[%clk 0:01:39.1]} 17... Kxg7 {[%clk 0:02:18.1]} 18. Qd4+
{[%clk 0:01:36.8]} 18... Kg8 {[%clk 0:02:14.1]} 19. Nce5 {[%clk 0:01:33.7]}
19... Nxe5 {[%clk 0:02:12.2]} 20. Nxe5 {[%clk 0:01:34.6]} 20... Bc8 {[%clk
0:02:05.7]} 21. h4 {[%clk 0:00:59.5]} 21... h5 {[%clk 0:01:54.1]} 22. Nd3 {[%clk
0:00:57.2]} 22... Be6 {[%clk 0:01:49.3]} 23. Qc3 {[%clk 0:00:47.9]} 23... Rfd8
{[%clk 0:01:41.5]} 24. f4 {[%clk 0:00:44.9]} 24... b5 {[%clk 0:01:07.2]} 25. Kh1
{[%clk 0:00:34.1]} 25... Rxd3 {[%clk 0:00:57.5]} 26. cxd3 {[%clk 0:00:33.1]}
26... Qxf4 {[%clk 0:00:58]} 27. Qxc6 {[%clk 0:00:28.3]} 27... Rc8 {[%clk
0:00:54.1]} 28. Qb6 {[%clk 0:00:15]} 28... Qxh4+ {[%clk 0:00:41.3]} 29. Kg1
{[%clk 0:00:15.2]} 29... Qg3 {[%clk 0:00:30.6]} 30. Qe3 {[%clk 0:00:12.1]} 30...
Qg4 {[%clk 0:00:25]} 31. Rac1 {[%clk 0:00:11.7]} 31... Rxc1 {[%clk 0:00:24.3]}
32. Rxc1 {[%clk 0:00:11.7]} 32... h4 {[%clk 0:00:22.2]} 33. Kh2 {[%clk
0:00:09.3]} 33... a3 {[%clk 0:00:22.3]} 34. d4 {[%clk 0:00:08.2]} 34... Bc4
{[%clk 0:00:22]} 35. d5 {[%clk 0:00:07.3]} 35... a2 {[%clk 0:00:21.1]} 36. d6
{[%clk 0:00:07.9]} 36... Qd7 {[%clk 0:00:19.9]} 37. e5 {[%clk 0:00:08.5]} 37...
Qe6 {[%clk 0:00:19.7]} 38. Rd1 {[%clk 0:00:06.7]} 38... Qd7 {[%clk 0:00:19.1]}
39. Qd4 {[%clk 0:00:07]} 39... Be6 {[%clk 0:00:18.1]} 40. Qxh4 {[%clk
0:00:06.5]} 40... Qa7 {[%clk 0:00:16.2]} 41. Qe1 {[%clk 0:00:05.4]} 41... Qb7
{[%clk 0:00:11.6]} 42. Qe3 {[%clk 0:00:04.8]} 42... Qc6 {[%clk 0:00:11.2]} 43.
Kg1 {[%clk 0:00:03.7]} 43... Qa6 {[%clk 0:00:11.3]} 44. Qc3 {[%clk 0:00:03.3]}
44... Qa7+ {[%clk 0:00:11.2]} 45. Kh1 {[%clk 0:00:02]} 45... Qf2 {[%clk
0:00:11]} 46. Ra1 {[%clk 0:00:01.9]} 46... Qh4+ {[%clk 0:00:10.8]} 47. Kg1
{[%clk 0:00:02]} 47... Qe4 {[%clk 0:00:10.3]} 48. Qe1 {[%clk 0:00:02.9]} 48...
Qd4+ {[%clk 0:00:09.4]} 49. Kh1 {[%clk 0:00:03.6]} 49... Qc4 {[%clk 0:00:08.4]}
50. Rc1 {[%clk 0:00:03.5]} 50... Qd5 {[%clk 0:00:08.4]} 51. Rd1 {[%clk
0:00:03.7]} 51... Qb3 {[%clk 0:00:08.4]} 52. d7 {[%clk 0:00:03.6]} 52... Bxd7
{[%clk 0:00:07.4]} 53. Rxd7 {[%clk 0:00:04.5]} 53... Qc4 {[%clk 0:00:05.2]} 54.
Rd1 {[%clk 0:00:04.3]} 54... Qc2 {[%clk 0:00:05.3]} 55. e6 {[%clk 0:00:04.5]}
55... fxe6 {[%clk 0:00:05.6]} 56. Qxe6+ {[%clk 0:00:05]} 56... Kh7 {[%clk
0:00:05.9]} 57. Qe7+ {[%clk 0:00:04.6]} 57... Kh6 {[%clk 0:00:06.1]} 58. Qh4+
{[%clk 0:00:05.3]} 58... Kg7 {[%clk 0:00:06.5]} 59. Rd7+ {[%clk 0:00:06.2]}
59... Kf8 {[%clk 0:00:05.7]} 60. Qd8# {[%clk 0:00:07.1]} 1-0